bitfinex/quotes_ETHUSD_20250422
["timestamp","ask_amount","ask_price","bid_price","bid_amount"]
[1745327132560,6.1074632,1637.4,1636.8,5.9683]
[1745327132886,6.10770386,1637.3,1636.9,3.64409818]
[1745327133660,6.71767392,1637.5,1636.9,3.64409818]
[1745327133859,6.08,1637.7,1637.0,0.2653]
[1745327134299,12.18634224,1637.7,1637.2,0.2653]
[1745327134500,12.21278561,1637.7,1637.3,5.76406787]
[1745327134795,0.4044592,1637.8,1637.4,3.0]
[1745327134796,12.6163561,1637.8,1637.4,3.0]
[1745327134977,6.10614221,1637.7,1637.4,3.0]
[1745327135181,6.10665494,1637.6,1637.5,0.5678067]
[1745327135388,6.10687022,1637.5,1637.4,5.702]
[1745327135602,6.10749124,1637.4,1637.3,5.702]
[1745327136698,6.10270193,1637.4,1637.3,5.702]
[1745327136873,6.10270193,1637.4,1637.0,0.2653]
[1745327136874,6.10831583,1637.2,1637.0,0.2653]
[1745327137069,12.21566215,1637.3,1637.0,0.2653]
[1745327137370,6.10787983,1637.3,1637.0,0.86203]
[1745327137767,6.10799124,1637.2,1637.0,0.86203]
[1745327137971,6.10799124,1637.2,1637.0,0.2653]
[1745327138167,6.10783475,1637.3,1637.0,0.2653]
[1745327138705,12.21573689,1637.3,1637.0,0.2653]
[1745327138907,6.10824641,1637.2,1637.0,0.2653]
[1745327139578,12.21651888,1637.2,1637.0,0.2653]
[1745327139777,6.10836234,1637.1,1637.0,0.2653]
[1745327140195,6.10836234,1637.1,1636.9,5.702]
[1745327140505,6.10911235,1636.9,1636.8,5.702]
[1745327140714,6.10911235,1636.9,1636.5,3.2653]
[1745327140913,6.10911235,1636.9,1636.8,5.702]
[1745327141476,6.11045827,1636.6,1636.5,5.827]
[1745327141676,6.1056024,1636.6,1636.5,5.827]
[1745327142103,6.8921024,1636.6,1636.5,5.827]
[1745327142305,6.1056024,1636.6,1636.3,5.827]
[1745327142679,6.11060189,1636.5,1636.3,5.827]
[1745327143221,6.08,1636.8,1636.5,0.2653]
[1745327143509,6.11060189,1636.5,1636.4,20.137]
[1745327144487,12.18965641,1636.8,1636.4,20.137]
[1745327144715,18.29949542,1636.8,1636.5,0.2653]
[1745327145021,12.18965641,1636.8,1636.5,2.30553]
[1745327145382,6.11005455,1636.7,1636.5,2.30553]
[1745327146217,6.10882912,1637.0,1636.5,2.30553]
[1745327146218,6.10891474,1637.0,1636.5,2.30553]
[1745327146422,6.10920412,1636.9,1636.5,2.30553]
[1745327146882,6.10954898,1636.8,1636.5,2.30553]
[1745327147422,6.10915,1636.9,1636.5,5.3666299]
[1745327147721,6.10894786,1637.0,1636.6,3.53666299]
[1745327147926,6.10894786,1637.0,1636.7,5.827]
[1745327149228,12.18814327,1637.2,1636.8,3.2653]
[1745327149418,6.10814327,1637.2,1636.8,3.2653]
[1745327149787,12.21640007,1637.2,1636.8,3.2653]
[1745327150023,6.10873549,1637.0,1636.9,0.32653]
[1745327150217,6.10873549,1637.0,1636.8,3.2653]
[1745327150218,6.10910868,1636.9,1636.8,0.2653]
[1745327150418,6.10910868,1636.9,1636.7,5.827]
[1745327150935,6.10855991,1637.1,1636.7,5.827]
[1745327151098,6.10874367,1637.0,1636.7,5.827]
[1745327151505,6.10855991,1637.1,1636.7,5.827]
[1745327151830,6.10855991,1637.1,1636.8,0.5827]
[1745327152002,6.1081261,1637.2,1636.8,3.5827]
[1745327152211,12.21645257,1637.2,1636.8,3.5827]
[1745327152398,6.10849735,1637.1,1636.8,3.5827]
[1745327152598,6.10880954,1637.0,1636.8,3.5827]
[1745327152926,12.21781957,1637.0,1636.8,3.5827]
[1745327153124,6.10948191,1636.8,1636.7,5.827]
[1745327154285,6.10928809,1636.9,1636.7,5.827]
[1745327154501,6.10948191,1636.8,1636.7,5.827]
[1745327154889,6.10889051,1637.0,1636.7,6.43623]
[1745327155394,12.21792779,1637.0,1636.7,6.43623]
[1745327155593,6.1092114,1636.9,1636.7,6.43623]
[1745327156329,6.10948191,1636.8,1636.7,6.43623]
[1745327156527,6.1092114,1636.9,1636.7,6.43623]
[1745327157321,6.1092114,1636.9,1636.8,0.643623]
[1745327158447,6.10808082,1637.2,1636.8,3.908923]
[1745327158866,6.1084806,1637.1,1636.8,3.908923]
[1745327159153,6.10875746,1637.0,1636.8,3.908923]
[1745327159349,6.1084806,1637.1,1636.8,3.908923]
[1745327159648,6.10910868,1636.9,1636.8,0.2653]
[1745327159948,6.10910868,1636.9,1636.7,5.827]
[1745327160451,6.10910868,1636.9,1636.5,0.2653]
[1745327160452,0.7865,1637.0,1636.5,0.2653]
[1745327160615,6.11009336,1636.7,1636.6,5.827]
[1745327161619,6.10985519,1636.7,1636.6,5.827]
[1745327162328,12.21941911,1636.8,1636.6,5.827]
[1745327162523,6.10985519,1636.7,1636.6,5.827]
[1745327162929,6.11022852,1636.6,1636.5,3.0]
[1745327163134,0.7865,1636.7,1636.2,0.2653]
[1745327163361,6.11139564,1636.3,1636.0,0.2653]
[1745327163655,6.11139564,1636.3,1636.1,6.36275712]
[1745327164222,6.11172228,1636.2,1636.1,6.36275712]
[1745327165751,6.89789564,1636.3,1636.1,6.36275712]
[1745327166123,6.11139564,1636.3,1636.1,6.36275712]
[1745327166463,6.11139564,1636.3,1636.1,6.99903283]
[1745327167258,6.11114677,1636.4,1636.1,6.99903283]
[1745327167556,6.11114677,1636.4,1636.1,7.26433283]
[1745327167729,6.11145002,1636.3,1636.1,7.26433283]
[1745327167935,12.22245302,1636.4,1636.1,7.26433283]
[1745327168230,6.11137713,1636.3,1636.2,0.72643328]
[1745327168449,6.11114677,1636.4,1636.2,1.26222715]
[1745327168756,12.2208749,1636.6,1636.2,4.26222715]
[1745327168941,6.10988483,1636.7,1636.3,0.06111372]
[1745327169341,12.18976445,1636.8,1636.4,0.79964839]
[1745327169554,6.10995495,1636.7,1636.5,5.828]
[1745327169753,6.10995495,1636.7,1636.5,6.49076484]
[1745327170051,6.10995495,1636.7,1636.6,0.53389347]
[1745327171631,6.88745495,1636.7,1636.6,0.53389347]
[1745327171837,6.11134877,1636.3,1636.2,5.724]
[1745327172244,6.11134877,1636.3,1636.2,6.25886957]
[1745327172651,6.11134877,1636.3,1636.2,0.53486957]
[1745327172958,8.02245001,1636.3,1636.2,0.53486957]
[1745327173125,6.11209583,1636.1,1636.0,5.724]
[1745327173556,6.11246943,1636.0,1635.9,20.138]
[1745327173734,6.11246943,1636.0,1635.9,25.862]
[1745327176431,6.11396429,1635.6,1635.5,0.2653]
[1745327176754,12.22764064,1635.7,1635.5,8.9903]
[1745327176953,12.22764064,1635.7,1635.5,9.88933]
[1745327177153,6.11396429,1635.6,1635.5,0.2653]
[1745327177357,6.11396429,1635.6,1635.2,20.144]
[1745327177358,6.11456346,1635.5,1635.3,0.2653]
[1745327177659,6.11443882,1635.5,1635.3,5.725]
[1745327177841,6.11471199,1635.4,1635.3,5.725]
[1745327178249,6.11443882,1635.5,1635.3,8.3119]
[1745327178874,6.11471199,1635.4,1635.3,8.3119]
[1745327179777,6.11471199,1635.4,1635.3,5.725]
[1745327179947,6.11508591,1635.3,1635.2,20.144]
[1745327180149,6.11508591,1635.3,1635.2,25.869]
[1745327181594,6.11508591,1635.3,1635.2,20.144]
[1745327181799,7.3380657,1635.3,1635.2,20.144]
[1745327181983,6.11545988,1635.2,1635.1,5.726]
[1745327182656,6.89295988,1635.2,1635.1,5.726]
[1745327183698,6.11721282,1634.8,1634.7,5.727]
[1745327185151,6.11721282,1634.8,1634.7,6.24992596]
[1745327186257,13.4983659,1634.8,1634.7,6.24992596]
[1745327186454,13.4983659,1634.8,1634.7,0.52292596]
[1745327186782,13.4983659,1634.8,1634.4,5.728]
[1745327186783,6.11807892,1634.5,1634.4,5.728]
[1745327187159,6.11807892,1634.5,1634.4,6.21404785]
[1745327187794,6.11787919,1634.6,1634.4,6.21404785]
[1745327187976,6.11745825,1634.7,1634.4,6.83545263]
[1745327188357,6.117719,1634.6,1634.4,6.83545263]
[1745327188562,6.11753912,1634.7,1634.4,6.83545263]
[1745327188805,6.11772889,1634.6,1634.4,6.83545263]
[1745327189098,6.11753912,1634.7,1634.4,6.83545263]
[1745327189271,6.1178021,1634.6,1634.4,6.83545263]
[1745327189460,12.23520083,1634.7,1634.4,6.83545263]
[1745327189656,6.11774293,1634.6,1634.4,6.83545263]
[1745327189852,6.11774293,1634.6,1634.4,6.21404785]
[1745327190280,6.11672926,1634.9,1634.5,3.0]
[1745327190484,6.11610187,1635.1,1634.6,0.2653]
[1745327190681,6.11564378,1635.2,1634.7,0.06116848]
[1745327190882,0.8278,1635.4,1634.9,3.0]
[1745327190883,6.11484114,1635.4,1634.9,3.0]
[1745327191083,6.11611503,1635.1,1634.9,4.4759059]
[1745327191281,6.1156301,1635.2,1635.0,0.48294881]
[1745327191664,6.11583389,1635.1,1635.0,0.48294881]
[1745327192101,6.1156301,1635.2,1635.0,0.48294881]
[1745327192288,6.11478659,1635.4,1635.0,0.06116066]
[1745327192493,12.19417167,1635.6,1635.1,0.2653]
[1745327192695,6.11337954,1635.8,1635.3,0.2653]
[1745327193299,6.11337954,1635.8,1635.4,0.48124576]
[1745327193505,12.22692208,1635.8,1635.4,0.48124576]
[1745327193658,6.43181121,1635.9,1635.4,0.061139]
[1745327193858,6.43181121,1635.9,1635.5,0.48081981]
[1745327194089,6.43181121,1635.9,1635.6,5.729]
[1745327194504,0.31887642,1635.9,1635.7,0.48115652]
[1745327194876,6.4318923,1635.9,1635.6,5.9943]
[1745327195074,6.4318923,1635.9,1635.8,0.4799384]
[1745327195289,6.4318923,1635.9,1635.7,0.54136469]
[1745327195290,0.31887642,1635.9,1635.7,0.54136469]
[1745327195603,0.31887642,1635.9,1635.8,0.47960843]
[1745327195971,0.31887642,1635.9,1635.6,6.65486119]
[1745327196167,0.31887642,1635.9,1635.7,0.66548612]
[1745327196414,0.31887642,1635.9,1635.7,1.14545454]
[1745327197210,6.11321677,1635.8,1635.7,0.47996842]
[1745327197516,6.11287758,1635.9,1635.6,5.729]
[1745327197718,6.11287758,1635.9,1635.7,0.47996842]
[1745327198071,6.11287758,1635.9,1635.6,5.729]
[1745327198286,6.11287758,1635.9,1635.8,0.47967443]
[1745327198512,6.11287758,1635.9,1635.7,0.48003441]
[1745327198809,6.11359051,1635.7,1635.6,5.729]
[1745327201013,6.11321677,1635.8,1635.6,5.729]
[1745327201412,6.11359051,1635.7,1635.6,5.729]
[1745327202127,6.87259051,1635.7,1635.6,5.729]
[1745327203078,6.11359051,1635.7,1635.6,5.729]
[1745327203475,6.11321677,1635.8,1635.6,6.3019]
[1745327203678,12.19293261,1635.9,1635.6,6.3019]
[1745327203910,6.11224664,1636.1,1635.8,0.2653]
[1745327204206,6.11156386,1636.3,1635.9,0.06112702]
[1745327204411,12.22321863,1636.3,1636.0,5.621]
[1745327204710,6.11186326,1636.2,1636.0,5.621]
[1745327205211,6.11145866,1636.3,1636.0,6.1831]
[1745327206392,6.11173192,1636.2,1636.0,6.1831]
[1745327206597,6.11097531,1636.4,1636.0,6.1831]
[1745327206924,6.11209583,1636.1,1636.0,5.621]
[1745327207828,6.11189534,1636.2,1636.0,5.621]
[1745327207995,6.11175435,1636.2,1636.0,5.621]
[1745327208192,6.11187909,1636.2,1636.0,5.621]
[1745327209028,6.11209583,1636.1,1636.0,5.621]
[1745327209225,6.11253469,1636.0,1635.8,0.2653]
[1745327209390,6.11226978,1636.1,1635.9,5.621]
[1745327209727,6.11191349,1636.2,1635.9,5.621]
[1745327210425,6.11153994,1636.3,1635.9,5.68212228]
[1745327210743,6.11076925,1636.5,1636.0,0.2653]
[1745327211028,6.08,1636.6,1636.0,0.2653]
[1745327211029,6.1103855,1636.6,1636.0,0.85393]
[1745327211326,6.1104728,1636.6,1636.2,0.2653]
[1745327211502,6.1104728,1636.6,1636.3,0.06110629]
[1745327211894,6.1109694,1636.5,1636.2,0.2653]
[1745327212106,6.11100268,1636.4,1636.2,0.2653]
[1745327212709,7.33315674,1636.4,1636.3,5.62]
[1745327213233,8.09215674,1636.4,1636.3,5.62]
[1745327214876,6.10945331,1636.9,1636.3,5.62]
[1745327214877,6.839,1636.9,1636.3,5.62]
[1745327215032,0.31863251,1637.3,1636.4,8.21428653]
[1745327215033,6.10855299,1637.1,1636.4,8.21428653]
[1745327215232,12.94714197,1637.2,1636.6,0.2653]
[1745327215233,0.759,1637.2,1636.6,0.2653]
[1745327215436,6.10836234,1637.1,1636.7,6.03204483]
[1745327215771,6.1082977,1637.2,1636.8,0.0610887]
[1745327215969,6.10818013,1637.2,1636.8,0.60931335]
[1745327216155,0.8123,1637.4,1636.9,0.40944797]
[1745327216348,6.10873549,1637.0,1636.9,0.40944797]
[1745327216552,6.10776549,1637.3,1636.8,0.67040233]
[1745327216861,6.10761619,1637.3,1636.9,0.40911825]
[1745327217063,6.10836685,1637.1,1636.7,5.62]
[1745327217264,6.10836685,1637.1,1636.8,0.40947768]
[1745327217773,6.10823998,1637.2,1636.8,0.40947768]
[1745327218158,6.10823998,1637.2,1636.9,0.2653]
[1745327218469,6.10823998,1637.2,1637.0,0.4090224]
[1745327218970,6.10782074,1637.3,1637.0,0.4090224]
[1745327219164,6.10802366,1637.2,1637.0,0.4090224]
[1745327219560,6.10836234,1637.1,1637.0,0.4090224]
[1745327220460,8.14230094,1637.1,1637.0,0.4090224]
[1745327220661,6.92215519,1636.7,1636.6,5.618]
[1745327220961,6.92215519,1636.7,1636.3,0.2653]
[1745327220962,6.10921117,1636.9,1636.4,3.0]
[1745327221754,2.0339386,1637.1,1636.4,3.0]
[1745327221755,6.11016766,1636.7,1636.4,3.0]
[1745327222090,8.14237648,1637.1,1636.3,5.8833]
[1745327222091,6.11071737,1636.5,1636.3,5.8833]
[1745327222504,6.11004468,1636.7,1636.3,5.8833]
[1745327222800,6.11124533,1636.4,1636.3,5.618]
[1745327223096,6.11077209,1636.5,1636.2,5.618]
[1745327223302,6.1109884,1636.4,1636.2,5.618]
[1745327223685,6.11134877,1636.3,1636.2,5.618]
[1745327223883,6.11074433,1636.5,1636.2,5.618]
[1745327224470,12.22165046,1636.5,1636.2,5.618]
[1745327224681,12.22166451,1636.5,1636.2,5.618]
[1745327224865,6.11098541,1636.4,1636.2,5.618]
[1745327225067,6.11134877,1636.3,1636.2,8.618]
[1745327225313,6.11134877,1636.3,1636.2,3.0]
[1745327225468,12.22250327,1636.4,1636.1,5.618]
[1745327225673,12.22251368,1636.4,1636.1,5.618]
[1745327225992,7.45565454,1636.4,1636.1,5.618]
[1745327226503,6.11135948,1636.3,1636.1,5.618]
[1745327226691,1.34446801,1636.4,1636.1,5.618]
[1745327226692,1.34446801,1636.4,1636.2,3.0]
[1745327226891,5.1531899,1637.0,1636.4,3.0]
[1745327226892,12.217912,1637.0,1636.4,3.0]
[1745327227094,12.217912,1637.0,1636.6,3.0]
[1745327227095,1.2217912,1636.9,1636.6,3.0]
[1745327227291,6.10887851,1637.0,1636.6,3.0]
[1745327227670,6.1081183,1637.2,1636.7,0.06109186]
[1745327227925,6.10840591,1637.1,1636.6,3.0]
[1745327228284,6.10840591,1637.1,1636.7,0.37451424]
[1745327230030,6.10734621,1637.4,1636.8,3.32638636]
[1745327230031,6.10746554,1637.4,1636.8,3.32638636]
[1745327230335,6.10805966,1637.2,1637.0,3.0]
[1745327230521,6.10836234,1637.1,1637.0,3.0]
[1745327231133,6.10873549,1637.0,1636.9,8.618]
[1745327231992,6.10836234,1637.1,1636.9,8.618]
[1745327232596,6.10873549,1637.0,1636.9,8.618]
[1745327232834,6.10980282,1636.8,1636.6,0.2653]
[1745327233041,6.11038984,1636.6,1636.2,6.0383]
[1745327233198,6.11038984,1636.6,1636.3,3.0]
[1745327233399,6.11007843,1636.7,1636.3,0.06110693]
[1745327233631,6.11007843,1636.7,1636.3,3.60994069]
[1745327233932,6.11024765,1636.6,1636.3,0.60994069]
[1745327234094,6.11024765,1636.6,1636.3,3.60994069]
[1745327234296,6.11024765,1636.6,1636.3,0.60994069]
[1745327234727,6.11024765,1636.6,1636.3,3.60994069]
[1745327235108,6.1106669,1636.5,1636.3,3.0]
[1745327235316,12.22076133,1636.6,1636.3,3.0]
[1745327235519,6.11008624,1636.7,1636.3,3.0611062]
[1745327236336,12.94523872,1636.9,1636.3,3.0]
[1745327236528,6.11054531,1636.6,1636.3,3.0]
[1745327236717,6.11039574,1636.6,1636.3,3.0]
[1745327237667,6.8644757,1637.1,1636.4,0.2653]
[1745327237849,6.1085757,1637.1,1636.6,0.2653]
[1745327238171,6.10798924,1637.2,1636.8,3.0]
[1745327238351,6.108506,1637.1,1636.8,3.0]
[1745327239560,1.22166577,1637.1,1636.8,3.0]
[1745327239774,6.10889444,1637.0,1636.8,3.0]
[1745327240332,6.10910868,1636.9,1636.8,3.0]
[1745327240567,6.10804534,1637.2,1636.4,0.2653]
[1745327240568,6.10958419,1636.8,1636.4,0.2653]
[1745327240732,6.10958419,1636.8,1636.5,5.773]
[1745327241068,6.10985519,1636.7,1636.5,5.773]
[1745327241474,13.44126231,1636.8,1636.5,5.773]
[1745327243178,6.10932856,1636.9,1636.6,3.0]
[1745327243532,6.10932856,1636.9,1636.7,0.37522726]
[1745327244044,6.10917023,1636.9,1636.7,0.37522726]
[1745327244704,6.10889375,1637.0,1636.7,0.37522726]
[1745327244988,6.10846941,1637.1,1636.7,0.64052726]
[1745327245709,6.10846941,1637.1,1636.7,1.07177822]
[1745327245876,6.08,1637.2,1636.7,1.07177822]
[1745327246058,6.08,1637.2,1636.7,0.64052726]
[1745327246059,6.10924392,1636.9,1636.7,0.64052726]
[1745327246500,6.10924392,1636.9,1636.7,0.2653]
[1745327246991,6.10924392,1636.9,1636.8,0.37401156]
[1745327247656,6.91564392,1636.9,1636.8,0.37401156]
[1745327247853,6.11031668,1636.6,1636.3,5.773]
[1745327248077,12.18927896,1636.9,1636.5,0.2653]
[1745327248278,12.21954811,1636.8,1636.6,0.37453308]
[1745327248479,6.91606495,1636.8,1636.4,3.0]
[1745327248683,6.91606495,1636.8,1636.5,6.14789282]
[1745327248684,12.22012633,1636.7,1636.5,6.14789282]
[1745327248857,6.11022852,1636.6,1636.5,6.14789282]
[1745327249058,6.10541036,1636.6,1636.5,6.14789282]
[1745327249259,6.10541036,1636.6,1636.5,5.773]
[1745327249487,6.10541036,1636.6,1636.5,6.14742941]
[1745327249786,6.10541036,1636.6,1636.5,5.773]
[1745327250099,6.10541036,1636.6,1636.5,6.1473633]
[1745327250704,6.10999415,1636.7,1636.5,6.1473633]
[1745327250862,6.91605083,1636.8,1636.5,6.76209963]
[1745327251196,12.21944203,1636.8,1636.5,6.76209963]
[1745327251359,6.10965083,1636.8,1636.5,6.1473633]
[1745327251559,12.18926416,1636.9,1636.6,3.0]
[1745327251858,12.18926416,1636.9,1636.7,0.3748998]
[1745327252058,6.10926416,1636.9,1636.7,0.3748998]
[1745327252459,6.10926416,1636.9,1636.6,3.0]
[1745327252460,6.10926416,1636.9,1636.6,3.2653]
[1745327252678,6.10926416,1636.9,1636.7,0.37470194]
[1745327252975,6.10926416,1636.9,1636.6,3.2653]
[1745327253176,6.10961979,1636.8,1636.6,3.2653]
[1745327253376,6.10961979,1636.8,1636.7,0.3748998]
[1745327254181,6.10961979,1636.8,1636.6,3.0]
[1745327254565,6.10961979,1636.8,1636.7,0.37078543]
[1745327255099,7.33151095,1636.8,1636.7,0.37078543]
[1745327255566,6.11044154,1636.6,1636.4,6.0393]
[1745327256130,6.11060189,1636.5,1636.4,5.774]
[1745327257209,6.11044154,1636.6,1636.4,5.774]
[1745327257393,12.22096177,1636.6,1636.4,5.774]
[1745327257714,6.11060189,1636.5,1636.4,5.774]
[1745327261329,6.11060189,1636.5,1636.4,6.10274643]
[1745327261729,6.11041156,1636.6,1636.4,6.10274643]
[1745327261938,12.22091532,1636.6,1636.4,6.10274643]
[1745327262237,6.11060189,1636.5,1636.4,6.10274643]
[1745327263537,5.97060189,1636.5,1636.4,6.10274643]
[1745327264646,5.97060189,1636.5,1636.4,0.32874643]
[1745327264647,7.98510324,1636.5,1636.4,0.32874643]
[1745327265002,6.11172228,1636.2,1636.1,20.14]
[1745327265502,6.11134877,1636.3,1636.1,20.14]
[1745327265702,6.11172228,1636.2,1636.1,20.14]
[1745327266016,6.91812228,1636.2,1636.1,20.14]
[1745327267045,0.8064,1636.2,1636.1,20.14]
[1745327267541,6.91812228,1636.2,1636.1,20.14]
[1745327267957,0.8064,1636.2,1635.7,0.2653]
[1745327268107,0.8064,1636.2,1635.6,5.693]
[1745327268108,6.11358854,1635.8,1635.6,5.693]
[1745327268447,6.11359051,1635.7,1635.6,5.693]
[1745327268805,6.11448754,1635.5,1635.0,0.2653]
[1745327269019,6.11472758,1635.4,1635.2,3.0]
[1745327269223,6.11472758,1635.4,1635.1,5.693]
[1745327269424,6.11472758,1635.4,1635.1,0.59583]
[1745327269642,6.11472758,1635.4,1635.2,8.693]
[1745327269643,6.11508591,1635.3,1635.2,8.693]
[1745327269844,6.11472758,1635.4,1635.2,8.693]
[1745327270045,6.11508591,1635.3,1635.2,8.693]
[1745327271947,6.11472758,1635.4,1635.2,8.693]
[1745327272120,6.11447957,1635.5,1635.2,8.693]
[1745327272320,6.11447957,1635.5,1635.2,9.5623]
[1745327272638,6.11321677,1635.8,1635.3,3.2653]
[1745327272813,12.22670787,1635.8,1635.3,3.2653]
[1745327273159,6.11393593,1635.7,1635.3,3.2653]
[1745327273471,6.11335668,1635.8,1635.4,0.32653]
[1745327273633,6.11359879,1635.7,1635.4,0.32653]
[1745327273830,6.11335668,1635.8,1635.4,0.32653]
[1745327274366,6.11362128,1635.7,1635.4,0.32653]
[1745327274657,12.22690115,1635.8,1635.5,0.26363726]
[1745327274817,12.22690115,1635.8,1635.4,0.32653]
[1745327274818,6.11366132,1635.7,1635.6,5.695]
[1745327275014,6.11366132,1635.7,1635.6,5.95867322]
[1745327275663,8.09616312,1635.7,1635.6,5.95867322]
[1745327276018,8.09616312,1635.7,1635.6,0.26367322]
[1745327276340,6.11451725,1635.5,1635.3,5.695]
[1745327276543,0.7598,1635.7,1635.3,5.695]
[1745327276722,12.22684202,1635.8,1635.4,1.10001993]
[1745327276923,6.11382283,1635.7,1635.4,0.53051993]
[1745327277119,6.11337615,1635.8,1635.4,0.2653]
[1745327277321,6.11337615,1635.8,1635.5,0.26502457]
[1745327277621,6.11337615,1635.8,1635.4,0.2653]
[1745327279139,6.11303759,1635.9,1635.4,0.2653]
[1745327279341,1.29854266,1635.9,1635.4,0.2653]
[1745327279548,7.41140234,1635.9,1635.4,0.2653]
[1745327280235,1.29854266,1635.9,1635.4,0.2653]
[1745327280440,6.1118931,1636.2,1635.5,0.27193211]
[1745327280774,7.31883601,1636.5,1635.6,3.06113286]
[1745327280775,6.8398,1636.4,1635.6,3.06113286]
[1745327280981,6.86986347,1636.7,1635.9,0.2653]
[1745327281176,7.5084376,1636.7,1635.9,0.59183]
[1745327281479,7.5084376,1636.7,1636.0,0.53100603]
[1745327281677,7.5084376,1636.7,1636.2,3.0]
[1745327281875,6.11035726,1636.6,1636.3,0.26508793]
[1745327282079,7.5084034,1636.7,1636.3,0.26508793]
[1745327282380,7.50823576,1636.7,1636.3,0.26508793]
[1745327282563,1.39837413,1636.7,1636.3,0.26508793]
[1745327282745,7.50844424,1636.7,1636.3,0.26508793]
[1745327283349,6.11025446,1636.6,1636.3,0.26508793]
[1745327283768,7.47212433,1636.6,1636.3,0.26508793]
[1745327284570,1.36186987,1636.6,1636.3,0.26508793]
[1745327284779,7.50841768,1636.7,1636.3,0.26508793]
[1745327285277,7.50841768,1636.7,1636.4,0.02]
[1745327285683,6.11027016,1636.6,1636.5,0.26441853]
[1745327285887,6.11027016,1636.6,1636.4,0.02]
[1745327286186,6.11027016,1636.6,1636.5,0.26441853]
[1745327286488,6.11027016,1636.6,1636.4,0.02]
[1745327286783,7.47213894,1636.6,1636.5,0.26441853]
[1745327287175,13.58267375,1636.6,1636.4,0.02]
[1745327287382,7.47213894,1636.6,1636.4,0.02]
[1745327287579,7.50844658,1636.7,1636.5,0.26441853]
[1745327288090,7.50844658,1636.7,1636.4,0.02]
[1745327288304,13.61857206,1636.7,1636.5,0.26379182]
[1745327288498,13.61857206,1636.7,1636.4,0.02]
[1745327288787,7.50844658,1636.7,1636.5,0.26379182]
[1745327288947,13.61859759,1636.7,1636.5,0.26379182]
[1745327289148,7.50844658,1636.7,1636.4,0.02]
[1745327289561,6.86987245,1636.7,1636.5,0.26379182]
[1745327290072,6.86987245,1636.7,1636.4,0.02]
[1745327290273,13.41156254,1636.8,1636.5,0.26365988]
[1745327290464,0.8197,1636.9,1636.5,5.694]
[1745327290465,13.00902642,1636.9,1636.5,5.694]
[1745327290650,6.10964483,1636.8,1636.5,6.29193]
[1745327290851,6.10964483,1636.8,1636.6,0.26284199]
[1745327291052,6.10985519,1636.7,1636.6,0.26284199]
[1745327291467,6.10964483,1636.8,1636.6,0.26284199]
[1745327292887,19.11833739,1636.9,1636.6,0.26284199]
[1745327293102,13.00896366,1636.9,1636.5,5.694]
[1745327293257,13.00896366,1636.9,1636.5,6.29193]
[1745327293457,19.11833739,1636.9,1636.6,0.26271007]
[1745327293678,6.10953703,1636.8,1636.6,0.26271007]
[1745327294084,12.21930902,1636.8,1636.6,0.26271007]
[1745327294293,6.10953703,1636.8,1636.6,0.26271007]
[1745327294494,6.92898821,1636.9,1636.6,0.26271007]
[1745327294660,8.22988703,1636.9,1636.6,0.26271007]
[1745327294861,6.10972507,1636.8,1636.6,0.26271007]
[1745327295467,6.10985519,1636.7,1636.6,0.26271007]
[1745327295673,12.22000429,1636.7,1636.5,5.694]
[1745327295867,6.10985519,1636.7,1636.6,0.25514678]
[1745327296189,6.10985519,1636.7,1636.5,5.694]
[1745327296571,6.10966907,1636.8,1636.6,0.25488289]
[1745327296892,6.10958993,1636.8,1636.5,5.694]
[1745327297095,12.18887175,1637.0,1636.6,0.5694]
[1745327297322,12.21790035,1637.0,1636.7,0.25465585]
[1745327297597,6.10887175,1637.0,1636.7,0.25465585]
[1745327297771,6.10912369,1636.9,1636.7,0.25465585]
[1745327297969,6.10887175,1637.0,1636.7,0.25465585]
[1745327298166,19.12054011,1637.1,1636.7,0.25465585]
[1745327298410,0.8233,1637.3,1636.8,5.41667188]
[1745327298562,6.93029945,1637.5,1636.9,9.10766719]
[1745327298894,6.93029945,1637.5,1637.0,0.2653]
[1745327299107,6.9033,1637.7,1637.1,3.30948485]
[1745327299407,6.9033,1637.7,1637.1,3.24840948]
[1745327299587,6.10701169,1637.5,1637.1,3.24840948]
[1745327299791,6.10738988,1637.4,1637.1,3.24840948]
[1745327299963,6.10738988,1637.4,1637.1,3.59978043]
[1745327300164,6.93068988,1637.4,1637.1,3.59978043]
[1745327300408,0.8233,1637.4,1637.1,3.24840948]
[1745327300700,6.93061611,1637.4,1637.1,3.24840948]
[1745327300858,0.8233,1637.4,1637.1,3.24840948]
[1745327301070,6.10726738,1637.4,1637.1,3.24840948]
[1745327301672,6.92986358,1637.6,1637.1,3.24840948]
[1745327301873,7.3337582,1637.8,1637.3,0.2653]
[1745327302099,13.43987517,1637.8,1637.4,0.24269566]
[1745327302322,7.3337582,1637.8,1637.3,5.8303]
[1745327302672,13.43980632,1637.8,1637.4,0.24295955]
[1745327302873,13.43977299,1637.8,1637.3,5.8303]
[1745327303183,13.43977299,1637.8,1637.4,0.58303]
[1745327303184,6.10615043,1637.7,1637.4,0.58303]
[1745327303372,7.3337582,1637.8,1637.4,0.58303]
[1745327303773,0.4044592,1637.8,1637.4,0.58303]
[1745327304072,6.51021757,1637.8,1637.4,0.58303]
[1745327304407,0.4044592,1637.8,1637.7,8.0902748]
[1745327304585,0.4044592,1637.8,1637.7,14.81618181]
[1745327304784,0.4044592,1637.8,1637.7,14.75513228]
[1745327305003,0.4044592,1637.8,1637.7,14.98810865]
[1745327305517,6.41985725,1639.0,1638.1,0.2653]
[1745327305720,6.10216144,1638.8,1638.4,0.2653]
[1745327306008,6.10216144,1638.8,1638.5,0.22619696]
[1745327306394,7.14427387,1639.0,1638.6,5.563]
[1745327306599,6.4198026,1639.0,1638.6,5.563]
[1745327306779,6.4198026,1639.0,1638.7,0.22072433]
[1745327306977,6.1016988,1638.9,1638.7,0.22072433]
[1745327307179,0.31843777,1639.0,1638.8,0.2653]
[1745327307681,0.31843777,1639.0,1638.9,0.21942805]
[1745327307883,0.09726873,1639.4,1639.2,9.099949]
[1745327308074,0.4044592,1639.5,1639.3,14.80288323]
[1745327308653,0.4044592,1639.5,1639.4,15.10636391]
[1745327308855,0.4044592,1639.5,1639.4,9.416452]
[1745327309024,0.4044592,1639.5,1639.4,3.1803265]
[1745327309226,6.50387975,1639.5,1639.4,0.1803265]
[1745327309428,6.101574,1639.0,1638.6,20.122]